bitfinex/quotes_BTCUSD_20250206
["timestamp","ask_amount","ask_price","bid_price","bid_amount"]
[1738848807005,0.00013882,98740.0,98739.0,0.0127018]
[1738848807585,0.20689498,98760.0,98739.0,0.0127018]
[1738848807795,0.00046256,98758.0,98739.0,0.0127018]
[1738848807982,0.00046256,98758.0,98739.0,0.006]
[1738848808248,0.00046256,98758.0,98741.0,0.08120879]
[1738848808581,0.00046256,98758.0,98742.0,0.00664758]
[1738848808817,0.00046256,98758.0,98755.0,0.01]
[1738848808999,0.00046256,98758.0,98756.0,0.26439265]
[1738848809200,0.00046256,98758.0,98757.0,0.01]
[1738848809439,0.00046256,98758.0,98757.0,0.11250365]
[1738848809642,0.00046256,98758.0,98757.0,0.26250365]
[1738848809854,0.00046256,98758.0,98757.0,0.27250365]
[1738848810630,0.00046256,98758.0,98757.0,0.39400365]
[1738848810837,0.00046256,98758.0,98757.0,0.40417234]
[1738848811273,0.00046256,98758.0,98757.0,0.32817234]
[1738848811618,0.00046256,98758.0,98757.0,0.33417234]
[1738848812006,0.00046256,98758.0,98757.0,0.33717234]
[1738848812208,0.00046256,98758.0,98757.0,0.32817234]
[1738848812419,0.20689498,98830.0,98792.0,0.151833]
[1738848812616,0.00098979,98790.0,98789.0,0.161838]
[1738848812831,0.00098979,98790.0,98789.0,0.3574538]
[1738848813026,0.00098979,98790.0,98789.0,0.35644165]
[1738848813256,0.00098979,98790.0,98789.0,0.50644165]
[1738848813628,0.00013879,98813.0,98812.0,0.01]
[1738848814000,0.00013879,98813.0,98812.0,0.27250365]
[1738848814746,0.00013879,98813.0,98812.0,0.27750365]
[1738848814949,0.00013879,98813.0,98812.0,0.25750365]
[1738848815177,0.00013879,98813.0,98801.0,0.01]
[1738848815375,0.00013879,98813.0,98812.0,0.10120879]
[1738848815533,0.00013879,98813.0,98812.0,0.13250365]
[1738848815730,0.00013879,98813.0,98812.0,0.27350365]
[1738848815939,0.00013879,98813.0,98812.0,0.10350365]
[1738848816135,0.00013879,98813.0,98812.0,0.12350365]
[1738848816614,0.00013879,98813.0,98812.0,0.27530665]
[1738848816814,0.00013879,98813.0,98812.0,0.11250365]
[1738848817019,0.00013879,98813.0,98812.0,0.11950365]
[1738848817220,0.00013879,98813.0,98812.0,0.10950365]
[1738848817430,0.00013879,98813.0,98812.0,0.11250365]
[1738848817749,0.00013879,98813.0,98812.0,0.017]
[1738848817962,0.00013879,98813.0,98812.0,0.007]
[1738848818549,0.00013879,98813.0,98812.0,0.002]
[1738848818778,0.00013879,98813.0,98812.0,0.11150365]
[1738848819312,0.00013879,98813.0,98812.0,0.12365402]
[1738848819688,0.00013879,98813.0,98812.0,0.12150365]
[1738848819902,0.00013879,98813.0,98812.0,0.11950365]
[1738848820104,0.00013879,98813.0,98765.0,0.55142]
[1738848820105,0.08643879,98813.0,98776.0,0.01]
[1738848820259,0.08643879,98813.0,98736.0,0.0805]
[1738848820260,0.01,98769.0,98725.0,0.01]
[1738848820491,0.01,98769.0,98715.0,0.0805]
[1738848820492,0.01,98780.0,98757.0,0.00022344]
[1738848820696,0.01,98777.0,98757.0,0.00022344]
[1738848820895,0.151864,98773.0,98757.0,0.00022344]
[1738848821098,0.20689498,98770.0,98757.0,0.00022344]
[1738848821310,0.20689498,98790.0,98760.0,0.202511]
[1738848821513,0.151823,98799.0,98763.0,0.151878]
[1738848821717,0.20689498,98790.0,98764.0,0.10250365]
[1738848821921,0.20689498,98790.0,98765.0,0.17611064]
[1738848822120,0.00013868,98770.0,98757.0,0.00022344]
[1738848822379,0.20689498,98767.0,98757.0,0.00022344]
[1738848822635,0.00013868,98770.0,98757.0,0.00022344]
[1738848823416,0.21603366,98770.0,98757.0,0.00122344]
[1738848823626,0.20703366,98770.0,98757.0,0.00022344]
[1738848823865,0.151885,98759.0,98757.0,0.00022344]
[1738848824282,0.151877,98764.0,98757.0,0.00022344]
[1738848824488,0.10250365,98769.0,98757.0,0.00022344]
[1738848824688,0.151885,98759.0,98757.0,0.00122344]
[1738848824914,0.151885,98759.0,98757.0,0.00022344]
[1738848825270,0.155885,98759.0,98757.0,0.00022344]
[1738848825680,0.1917246,98759.0,98757.0,0.00022344]
[1738848825998,0.155885,98759.0,98757.0,0.00022344]
[1738848826707,0.10250365,98758.0,98757.0,0.00022344]
[1738848828055,0.10550365,98758.0,98757.0,0.00022344]
[1738848828687,0.003,98758.0,98757.0,0.00022344]
[1738848829801,0.151872,98767.0,98757.0,0.00022344]
[1738848830027,0.003,98758.0,98757.0,0.00022344]
[1738848830231,0.151886,98758.0,98757.0,0.00022344]
[1738848830437,0.174886,98758.0,98757.0,0.00022344]
[1738848830641,0.175886,98758.0,98757.0,0.00022344]
[1738848830826,0.174886,98758.0,98757.0,0.00022344]
[1738848831240,0.177886,98758.0,98757.0,0.00022344]
[1738848832222,0.026,98758.0,98757.0,0.00022344]
[1738848833000,0.180886,98758.0,98757.0,0.00022344]
[1738848833419,0.023,98758.0,98757.0,0.00022344]
[1738848833971,0.024,98758.0,98757.0,0.00022344]
[1738848834320,0.001,98758.0,98757.0,0.15211044]
[1738848834873,0.00013868,98770.0,98758.0,0.15]
[1738848835117,0.00013868,98770.0,98769.0,0.151869]
[1738848835613,0.00013868,98770.0,98763.0,0.202504]
[1738848835807,0.00013868,98770.0,98764.0,0.10250365]
[1738848836013,0.00013868,98770.0,98766.0,0.151873]
[1738848836132,0.00013868,98770.0,98764.0,0.10250365]
[1738848836333,0.00013868,98770.0,98768.0,0.15187]
[1738848837103,0.00313868,98770.0,98768.0,0.15187]
[1738848837339,0.00013868,98770.0,98768.0,0.15187]
[1738848837516,0.00313868,98770.0,98764.0,0.25437965]
[1738848837738,0.00313868,98770.0,98764.0,0.10250365]
[1738848837949,0.00313868,98770.0,98765.0,0.151875]
[1738848838375,0.00313868,98770.0,98764.0,0.10250365]
[1738848838587,0.00313868,98770.0,98767.0,0.151871]
[1738848839195,0.00313868,98770.0,98764.0,0.10250365]
[1738848839597,0.00013868,98770.0,98768.0,0.01881754]
[1738848839800,0.00313868,98770.0,98768.0,0.01881754]
[1738848840185,0.023,98769.0,98768.0,0.01881754]
[1738848840589,0.00013868,98770.0,98768.0,0.01881754]
[1738848840977,0.023,98769.0,98751.0,0.0482]
[1738848841200,0.023,98769.0,98740.0,0.08172428]
[1738848841825,0.023,98764.0,98740.0,0.08172428]
[1738848842025,0.023,98764.0,98740.0,0.23363728]
[1738848842182,0.023,98767.0,98740.0,0.08172428]
[1738848842682,0.023,98758.0,98740.0,0.08172428]
[1738848842896,0.023,98758.0,98740.0,0.00022428]
[1738848843538,0.29550365,98758.0,98740.0,0.00022428]
[1738848843954,0.301912,98741.0,98740.0,0.00022428]
[1738848844168,0.301912,98741.0,98707.0,0.08120879]
[1738848844169,0.023,98712.0,98707.0,0.08120879]
[1738848844375,0.023,98710.0,98707.0,0.08120879]
[1738848844575,0.023,98710.0,98684.0,0.0808]
[1738848844683,0.023,98699.0,98680.0,0.152005]
[1738848844885,0.023,98699.0,98680.0,0.10250365]
[1738848845291,0.023,98689.0,98677.0,0.152011]
[1738848845518,0.023,98689.0,98671.0,0.0002]
[1738848845722,0.22989498,98681.0,98680.0,0.00046256]
[1738848845941,0.023,98681.0,98680.0,0.00046256]
[1738848847490,0.151981,98696.0,98680.0,0.00046256]
[1738848847692,0.20689498,98710.0,98680.0,0.00746256]
[1738848847693,0.001,98681.0,98680.0,0.00746256]
[1738848847890,0.001,98681.0,98680.0,0.00946256]
[1738848848102,0.023,98700.0,98680.0,0.00246256]
[1738848848324,0.023,98702.0,98680.0,0.00246256]
[1738848848478,0.023,98700.0,98681.0,0.152004]
[1738848848689,0.20689498,98710.0,98684.0,0.151998]
[1738848848919,0.08120879,98717.0,98681.0,0.202673]
[1738848849125,0.10250365,98716.0,98698.0,0.151978]
[1738848849295,0.08120879,98717.0,98684.0,0.00101323]
[1738848849525,0.023,98712.0,98699.0,0.00343595]
[1738848849782,0.023,98712.0,98691.0,0.151988]
[1738848850089,0.05377219,98712.0,98700.0,0.00343488]
[1738848850299,0.023,98714.0,98692.0,0.151987]
[1738848850734,0.023,98716.0,98693.0,0.0034424]
[1738848850951,0.005,98712.0,98694.0,0.18380365]
[1738848851159,0.28810377,98740.0,98708.0,0.151962]
[1738848851373,0.10250365,98739.0,98696.0,0.15]
[1738848851607,0.10250365,98739.0,98709.0,0.00341803]
[1738848851810,0.28810377,98740.0,98710.0,0.10250365]
[1738848852219,0.151917,98738.0,98713.0,0.151954]
[1738848852401,0.06563569,98738.0,98714.0,0.00341266]
[1738848852731,0.04980127,98757.0,98732.0,0.151925]
[1738848852957,0.151891,98755.0,98716.0,0.15]
[1738848853169,0.009,98740.0,98733.0,0.00450022]
[1738848853392,0.009,98740.0,98732.0,0.00046256]
[1738848853606,0.009,98740.0,98734.0,0.00449787]
[1738848853816,0.009,98738.0,98732.0,0.00046256]
[1738848854026,0.023,98737.0,98732.0,0.00046256]
[1738848854490,0.023,98739.0,98732.0,0.00046256]
[1738848854702,0.002,98740.0,98734.0,0.202564]
[1738848854907,0.002,98740.0,98732.0,0.00046256]
[1738848854908,0.002,98740.0,98737.0,0.151918]
[1738848855115,0.002,98740.0,98736.0,0.20256]
[1738848855334,0.002,98740.0,98738.0,0.00449214]
[1738848855533,0.002,98740.0,98738.0,0.151916]
[1738848855711,0.002,98740.0,98739.0,0.00449071]
[1738848856100,0.0001068,98759.0,98738.0,0.151916]
[1738848856444,0.023,98757.0,98739.0,0.00449071]
[1738848856631,0.023,98757.0,98732.0,0.00046256]
[1738848856804,0.023,98757.0,98741.0,0.151912]
[1738848857123,0.023,98757.0,98732.0,0.00046256]
[1738848857124,0.0001068,98759.0,98742.0,0.00448642]
[1738848857527,0.0001068,98759.0,98735.0,0.202561]
[1738848857764,0.023,98756.0,98743.0,0.00448499]
[1738848857941,0.023,98756.0,98749.0,0.151899]
[1738848858142,0.0001068,98759.0,98747.0,0.151902]
[1738848858367,0.0001068,98759.0,98750.0,0.00447497]
[1738848858570,0.0001068,98759.0,98748.0,0.00447783]
[1738848858768,0.0001068,98759.0,98751.0,0.00447354]
[1738848858984,0.0001068,98759.0,98749.0,0.0044764]
[1738848859099,0.0001068,98759.0,98752.0,0.00447211]
[1738848859304,0.0051068,98759.0,98754.0,0.151892]
[1738848859544,0.0051068,98759.0,98752.0,0.151894]
[1738848859744,0.0051068,98759.0,98753.0,0.151893]
[1738848859953,0.0071068,98759.0,98749.0,0.10250365]
[1738848860123,0.0001068,98759.0,98749.0,0.10250365]
[1738848860579,0.0021068,98759.0,98749.0,0.10250365]
[1738848860757,0.0001068,98759.0,98753.0,0.151893]
[1738848860963,0.0001068,98759.0,98757.0,0.151887]
[1738848861163,0.0011068,98759.0,98757.0,0.151886]
[1738848861324,0.0011068,98759.0,98749.0,0.10250365]
[1738848861531,0.0011068,98759.0,98750.0,0.10250365]
[1738848861935,0.0011068,98759.0,98754.0,0.151892]
[1738848862143,0.0011068,98759.0,98755.0,0.10250365]
[1738848862287,0.0001068,98759.0,98755.0,0.25439365]
[1738848862487,0.0001068,98759.0,98755.0,0.10250365]
[1738848862686,0.0021068,98759.0,98755.0,0.10250365]
[1738848862909,0.0001068,98759.0,98755.0,0.25439365]
[1738848863117,0.0001068,98759.0,98755.0,0.10250365]
[1738848863269,0.0001068,98759.0,98755.0,0.25439365]
[1738848863468,0.0001068,98759.0,98755.0,0.10250365]
[1738848863771,0.0001068,98759.0,98758.0,0.151886]
[1738848863969,0.0011068,98759.0,98740.0,0.00022428]
[1738848864143,0.0001068,98759.0,98746.0,0.15]
[1738848864354,0.0001068,98759.0,98748.0,0.301901]
[1738848864563,0.0001068,98759.0,98749.0,0.10250365]
[1738848864971,0.0001068,98759.0,98740.0,0.20277428]
[1738848865180,0.0001068,98759.0,98741.0,0.10250365]
[1738848865382,0.023,98754.0,98740.0,0.00022428]
[1738848865585,0.023,98754.0,98741.0,0.01]
[1738848865794,0.202503,98764.0,98741.0,0.01]
[1738848865994,0.202509,98761.0,98741.0,0.01]
[1738848866203,0.0001068,98769.0,98742.0,0.202548]
[1738848866405,0.10250365,98768.0,98741.0,0.01]
[1738848866610,0.10250365,98768.0,98747.0,0.202535]
[1738848866963,0.10250365,98768.0,98748.0,0.1519]
[1738848867167,0.10250365,98768.0,98747.0,0.177535]
[1738848867369,0.10250365,98768.0,98741.0,0.01]
[1738848867370,0.202496,98767.0,98741.0,0.01]
[1738848867572,0.10250365,98767.0,98741.0,0.01]
[1738848867799,0.023,98766.0,98746.0,0.151904]
[1738848867973,0.023,98766.0,98744.0,0.202542]
[1738848868180,0.023,98763.0,98743.0,0.151909]
[1738848868392,0.023,98763.0,98741.0,0.01]
[1738848868598,0.10250365,98767.0,98741.0,0.01]
[1738848868981,0.023,98759.0,98741.0,0.161911]
[1738848869192,0.151881,98761.0,98741.0,0.161911]
[1738848869193,0.023,98762.0,98741.0,0.01]
[1738848869412,0.023,98762.0,98747.0,0.151901]
[1738848869654,0.002,98763.0,98759.0,0.151884]
[1738848869868,0.08120879,98779.0,98760.0,0.151882]
[1738848870086,0.15,98781.0,98762.0,0.15188]
[1738848870290,0.15,98781.0,98745.0,0.202541]
[1738848870493,0.15,98781.0,98747.0,0.202537]
[1738848870694,0.15,98781.0,98762.0,0.202507]
[1738848870823,0.023,98778.0,98748.0,0.10250365]
[1738848871027,0.023,98777.0,98758.0,0.151885]
[1738848871628,0.151855,98778.0,98752.0,0.354422]
[1738848871828,0.151855,98778.0,98745.0,0.20254]
[1738848871829,0.202468,98781.0,98753.0,0.10250365]
[1738848872182,0.002,98763.0,98754.0,0.151892]
[1738848872313,0.151867,98771.0,98755.0,0.10250365]
[1738848872720,0.151884,98760.0,98742.0,0.151911]
[1738848872920,0.151884,98760.0,98741.0,0.0225471]
[1738848872921,0.023,98766.0,98747.0,0.151902]
[1738848873123,0.023,98763.0,98745.0,0.202541]
[1738848873364,0.023,98763.0,98748.0,0.151901]
[1738848873577,0.025,98763.0,98750.0,0.151898]
[1738848873779,0.025,98763.0,98752.0,0.151895]
[1738848874074,0.001,98760.0,98752.0,0.151895]
[1738848874461,0.001,98760.0,98752.0,0.151894]
[1738848874765,0.001,98760.0,98746.0,0.10250365]
[1738848875168,0.001,98760.0,98747.0,0.151903]
[1738848875374,0.001,98760.0,98746.0,0.25440765]
[1738848875524,0.023,98763.0,98746.0,0.25440765]
[1738848875740,0.002,98763.0,98746.0,0.10250365]
[1738848875935,0.002,98763.0,98746.0,0.25440765]
[1738848876151,0.151878,98764.0,98746.0,0.25440765]
[1738848876152,0.17488,98762.0,98746.0,0.10250365]
[1738848876369,0.001,98760.0,98746.0,0.10250365]
[1738848876601,0.001,98760.0,98750.0,0.151898]
[1738848876893,0.001,98760.0,98746.0,0.10250365]
[1738848877117,0.001,98760.0,98750.0,0.151897]
[1738848877322,0.023,98762.0,98749.0,0.151899]
[1738848877520,0.023,98766.0,98750.0,0.151898]
[1738848877726,0.023,98766.0,98746.0,0.10250365]
[1738848877932,0.023,98765.0,98746.0,0.10250365]
[1738848878135,0.0001068,98769.0,98746.0,0.10250365]
[1738848878348,0.0231068,98769.0,98751.0,0.151896]
[1738848878655,0.023,98763.0,98746.0,0.10250365]
[1738848878775,0.001,98760.0,98746.0,0.10250365]
[1738848878982,0.023,98767.0,98747.0,0.151903]
[1738848879180,0.023,98766.0,98746.0,0.10250365]
[1738848879402,0.023,98763.0,98746.0,0.25440765]
[1738848879615,0.023,98767.0,98748.0,0.1519]
[1738848879817,0.023,98766.0,98748.0,0.1519]
[1738848880021,0.001,98760.0,98748.0,0.151901]
[1738848880230,0.001,98760.0,98749.0,0.1519]
[1738848880556,0.001,98760.0,98747.0,0.151903]
[1738848880771,0.001,98760.0,98741.0,0.01]
[1738848880977,0.151911,98742.0,98741.0,0.01]
[1738848881207,0.2103565,98742.0,98741.0,0.01]
[1738848881411,0.31286015,98742.0,98741.0,0.01]
[1738848881958,0.023,98742.0,98741.0,0.01]
[1738848882166,0.03143747,98742.0,98741.0,0.01]
[1738848882574,0.00843747,98742.0,98741.0,0.01]
[1738848882801,0.01743747,98742.0,98741.0,0.011]
[1738848883156,0.03143747,98742.0,98741.0,0.01]
[1738848883564,0.028,98742.0,98741.0,0.01]
[1738848883807,0.023,98742.0,98741.0,0.01]
[1738848884012,0.249071,98780.0,98741.0,0.01]
[1738848884214,0.0813,98778.0,98741.0,0.01]
[1738848884427,0.23307279,98773.0,98742.0,0.202548]
[1738848884735,0.0084435,98759.0,98743.0,0.10250365]
[1738848884950,0.0084435,98759.0,98741.0,0.01]
[1738848885148,0.005,98742.0,98741.0,0.01]
[1738848885351,0.023,98748.0,98741.0,0.01022428]
[1738848885762,0.023,98746.0,98742.0,0.001]
[1738848886113,0.023,98755.0,98741.0,0.01022428]
[1738848886313,0.023,98746.0,98741.0,0.01122428]
[1738848886737,0.023,98746.0,98741.0,0.01022428]
[1738848886941,0.024,98746.0,98741.0,0.01022428]
[1738848887578,0.001,98746.0,98741.0,0.01022428]
[1738848888764,0.023,98759.0,98741.0,0.01022428]
[1738848889116,0.20689498,98780.0,98741.0,0.01022428]
[1738848889330,0.202464,98783.0,98741.0,0.01022428]
[1738848889331,0.20689498,98770.0,98741.0,0.01022428]
[1738848889562,0.023,98761.0,98743.0,0.151908]
[1738848889708,0.023,98761.0,98741.0,0.01022428]
[1738848889912,0.0001068,98769.0,98742.0,0.405096]
[1738848890116,0.0231068,98769.0,98741.0,0.01022428]
[1738848890294,0.023,98758.0,98741.0,0.01022428]
[1738848890688,0.023,98758.0,98752.0,0.151894]
[1738848890913,0.023,98758.0,98748.0,0.151901]
[1738848891114,0.023,98758.0,98749.0,0.1519]
[1738848891679,0.023,98758.0,98742.0,0.202546]
[1738848891929,0.023,98758.0,98746.0,0.151904]
[1738848892380,0.023,98760.0,98741.0,0.01022428]
[1738848892893,0.0658011,98759.0,98741.0,0.01022428]
[1738848893096,0.174888,98757.0,98741.0,0.01022428]
[1738848893241,0.023,98757.0,98741.0,0.01022428]
[1738848893422,0.023,98756.0,98741.0,0.01022428]
[1738848893836,0.023,98758.0,98741.0,0.01022428]
[1738848894039,0.023,98758.0,98742.0,0.202548]
[1738848894243,0.023,98758.0,98749.0,0.1519]
[1738848894447,0.023,98756.0,98749.0,0.1519]
[1738848894712,0.023,98756.0,98741.0,0.01022428]
[1738848895086,0.023,98756.0,98743.0,0.202544]
[1738848895429,0.0084441,98757.0,98741.0,0.01022428]
[1738848895637,0.023,98756.0,98741.0,0.01022428]
[1738848896044,0.04495636,98756.0,98749.0,0.151899]
[1738848896250,0.04495636,98756.0,98747.0,0.151901]
[1738848896473,0.04495636,98756.0,98745.0,0.151906]
[1738848896674,0.04495636,98756.0,98748.0,0.151901]
[1738848896806,0.04506316,98756.0,98741.0,0.01022428]
[1738848897223,0.04606316,98756.0,98751.0,0.151896]
[1738848897431,0.04506316,98756.0,98741.0,0.01022428]
[1738848897789,0.04506316,98756.0,98747.0,0.151902]
[1738848897992,0.023,98754.0,98747.0,0.151902]
[1738848898172,0.023,98754.0,98743.0,0.202546]
[1738848898375,0.023,98754.0,98744.0,0.202543]
[1738848898603,0.023,98754.0,98745.0,0.151906]
[1738848898836,0.023,98754.0,98747.0,0.151903]
[1738848899047,0.023,98754.0,98741.0,0.01022428]
[1738848899250,0.023,98754.0,98742.0,0.202548]
[1738848899552,0.023,98752.0,98749.0,0.151899]
[1738848899783,0.023,98752.0,98741.0,0.01022428]
[1738848899981,0.023,98752.0,98750.0,0.151898]
[1738848900190,0.023,98752.0,98741.0,0.01022428]
[1738848900191,0.023,98752.0,98742.0,0.557007]
[1738848900412,0.023,98752.0,98741.0,0.01022428]
[1738848900627,0.0084441,98751.0,98741.0,0.01022428]
[1738848900828,0.202538,98747.0,98741.0,0.01022428]
[1738848901027,0.023,98750.0,98741.0,0.01022428]
[1738848901160,0.023,98750.0,98749.0,0.1519]
[1738848901367,0.023,98750.0,98741.0,0.01022428]
[1738848901368,0.0084441,98751.0,98748.0,0.202534]
[1738848901572,0.0084441,98751.0,98750.0,0.151898]
[1738848901820,0.0001068,98756.0,98743.0,0.202546]
[1738848901994,0.0001068,98756.0,98753.0,0.151892]
[1738848902196,0.0001068,98756.0,98742.0,0.202548]
[1738848902427,0.0001068,98756.0,98742.0,0.203548]
[1738848902632,0.0001068,98756.0,98745.0,0.151905]
[1738848902831,0.023,98754.0,98745.0,0.151905]
[1738848903026,0.023,98754.0,98743.0,0.001]
[1738848903258,0.023,98754.0,98741.0,0.01022428]
[1738848903705,0.023,98750.0,98741.0,0.01022428]
[1738848903929,0.174911,98742.0,98741.0,0.01022428]
[1738848904154,0.27741465,98742.0,98741.0,0.01022428]
[1738848904573,0.27741465,98742.0,98699.0,0.08120879]
[1738848904574,0.273,98741.0,98699.0,0.08120879]
[1738848904757,0.023,98709.0,98699.0,0.08167135]
[1738848905003,0.023,98709.0,98699.0,0.00046256]
[1738848905203,0.174963,98709.0,98699.0,0.00046256]
[1738848905413,0.13794636,98710.0,98699.0,0.00046256]
[1738848905414,0.151975,98700.0,98699.0,0.00046256]
[1738848905587,0.023,98700.0,98699.0,0.00046256]
[1738848906562,0.023,98700.0,98699.0,0.00546256]
[1738848906766,0.023,98700.0,98699.0,0.00146256]
[1738848906971,0.023,98700.0,98699.0,0.00046256]
[1738848907202,0.03244838,98700.0,98699.0,0.00046256]
[1738848907408,0.13495203,98700.0,98699.0,0.00046256]
[1738848907811,0.13587129,98700.0,98699.0,0.00046256]
[1738848909714,0.28587129,98700.0,98699.0,0.00046256]
[1738848909917,0.28587129,98700.0,98699.0,0.00068684]
[1738848909918,0.29587129,98700.0,98699.0,0.00068684]
[1738848910326,0.29487129,98700.0,98699.0,0.00068684]
[1738848910866,0.30576255,98700.0,98699.0,0.00168684]
[1738848911099,0.38566561,98700.0,98699.0,0.00168684]
[1738848911306,0.39911746,98700.0,98699.0,0.00168684]
[1738848911718,0.40911746,98700.0,98699.0,0.00168684]
[1738848912410,0.40911746,98700.0,98676.0,0.00022428]
[1738848912621,0.40911746,98700.0,98676.0,0.0003631]
[1738848912622,0.175011,98677.0,98676.0,0.0003631]
[1738848912863,0.27751465,98677.0,98676.0,0.0003631]
[1738848913273,0.29941488,98677.0,98676.0,0.0003631]
[1738848913714,0.29941488,98677.0,98676.0,0.0013631]
[1738848914177,0.29941488,98677.0,98676.0,0.0003631]
[1738848914380,0.36989107,98677.0,98676.0,0.0003631]
[1738848914596,0.65189107,98677.0,98676.0,0.0003631]
[1738848914699,0.64443922,98677.0,98676.0,0.0013631]
[1738848915638,0.65243922,98677.0,98676.0,0.0013631]
[1738848915856,0.64643922,98677.0,98676.0,0.0003631]
[1738848916099,0.67317359,98677.0,98676.0,0.0003631]
[1738848916310,0.67417359,98677.0,98676.0,0.0003631]
[1738848916452,0.67317359,98677.0,98676.0,0.0003631]
[1738848916658,0.67217359,98677.0,98676.0,0.0003631]
[1738848916897,0.66817359,98677.0,98676.0,0.0003631]
[1738848917097,0.77817359,98677.0,98676.0,0.0003631]
[1738848917520,0.76817359,98677.0,98676.0,0.0003631]
[1738848917863,0.6976974,98677.0,98676.0,0.0003631]
[1738848918478,0.4676974,98677.0,98676.0,0.0003631]
[1738848918902,0.4750574,98677.0,98676.0,0.0003631]
[1738848919105,0.4406974,98677.0,98676.0,0.0003631]
[1738848919714,0.4676974,98677.0,98676.0,0.0003631]
[1738848920121,0.01444838,98677.0,98676.0,0.0003631]
[1738848920517,0.01244838,98677.0,98676.0,0.0003631]
[1738848920743,0.01444838,98677.0,98676.0,0.0003631]
[1738848920952,0.01044838,98677.0,98676.0,0.0003631]
[1738848921717,0.16245938,98677.0,98676.0,0.0003631]
[1738848921864,0.16045938,98677.0,98676.0,0.0003631]
[1738848922064,0.34618895,98677.0,98676.0,0.0003631]
[1738848922262,0.35318895,98677.0,98676.0,0.0003631]
[1738848922523,0.28796303,98677.0,98676.0,0.0003631]
[1738848922778,0.28896303,98677.0,98676.0,0.0003631]
[1738848923017,0.29096303,98677.0,98676.0,0.0003631]
[1738848923183,0.28796303,98677.0,98676.0,0.0003631]
[1738848923528,0.29096303,98677.0,98676.0,0.0003631]
[1738848923728,0.3574681,98677.0,98676.0,0.0003631]
[1738848924132,0.3604681,98677.0,98676.0,0.0003631]
[1738848924759,0.29096303,98677.0,98676.0,0.0003631]
[1738848924958,0.28896303,98677.0,98676.0,0.0003631]
[1738848925408,0.28796303,98677.0,98676.0,0.0003631]
[1738848925706,0.05090023,98677.0,98676.0,0.0003631]
[1738848925915,0.02190023,98677.0,98676.0,0.0003631]
[1738848926125,0.02390023,98677.0,98676.0,0.0003631]
[1738848926333,0.05090023,98677.0,98676.0,0.0003631]
[1738848926555,0.04690023,98677.0,98676.0,0.0003631]
[1738848926801,0.03144838,98677.0,98676.0,0.0003631]
[1738848927007,0.03744838,98677.0,98676.0,0.0003631]
[1738848927195,0.03344838,98677.0,98676.0,0.0003631]
[1738848927630,0.01044838,98677.0,98676.0,0.0003631]
[1738848927839,0.01044838,98677.0,98676.0,0.0050787]
[1738848928044,0.01044838,98677.0,98676.0,0.0003631]
[1738848928216,0.00844838,98677.0,98676.0,0.00505261]
[1738848928416,0.00844838,98677.0,98676.0,0.0003631]
[1738848928626,0.03144838,98677.0,98676.0,0.0003631]
[1738848929205,0.04590023,98677.0,98676.0,0.1523751]
[1738848929400,0.04490023,98677.0,98676.0,0.1523751]
[1738848929538,0.02190023,98677.0,98676.0,0.28066461]
[1738848929738,0.02690023,98677.0,98676.0,0.28066461]
[1738848929988,0.02390023,98677.0,98676.0,0.12865261]
[1738848930196,0.02790023,98677.0,98676.0,0.12865261]
[1738848930453,0.02790023,98677.0,98676.0,0.28066461]
[1738848930653,0.01044838,98677.0,98676.0,0.28066461]
[1738848930819,0.01044838,98677.0,98676.0,0.28166461]
[1738848931487,0.00844838,98677.0,98676.0,0.28166461]
[1738848932224,0.00844838,98677.0,98676.0,0.12965261]
[1738848932659,0.00844838,98677.0,98676.0,0.28166461]
[1738848932858,0.00844838,98677.0,98676.0,0.53416826]
[1738848933271,0.0200161,98719.0,98680.0,0.15]
[1738848933477,0.08120879,98708.0,98686.0,0.0758]
[1738848933684,0.08120879,98708.0,98704.0,0.151969]
[1738848933895,0.08120879,98708.0,98705.0,0.15644515]
[1738848934045,0.023,98716.0,98705.0,0.00447815]
[1738848934246,0.151965,98707.0,98686.0,0.0758]
[1738848934460,0.151965,98707.0,98692.0,0.151987]
[1738848934659,0.023,98708.0,98693.0,0.15448426]
[1738848934861,0.151965,98707.0,98693.0,0.15448426]
[1738848935219,0.023,98709.0,98697.0,0.151979]
[1738848935346,0.023,98709.0,98693.0,0.15448426]
[1738848935553,0.151965,98707.0,98698.0,0.00448171]
[1738848935747,0.00818285,98708.0,98686.0,0.0758]
[1738848935952,0.02127541,98708.0,98699.0,0.0044812]
[1738848936176,0.023,98706.0,98686.0,0.0758]
[1738848936425,0.003,98707.0,98686.0,0.0758]
[1738848936426,0.151974,98702.0,98686.0,0.0758]
[1738848936633,0.151975,98700.0,98687.0,0.00448731]
[1738848936854,0.023,98699.0,98687.0,0.00448731]
[1738848937137,0.023,98690.0,98685.0,0.0491]
[1738848937357,0.023,98688.0,98671.0,0.0002]
[1738848937476,0.225662,98686.0,98671.0,0.0002]
[1738848937675,0.023,98681.0,98671.0,0.0002]
[1738848937882,0.023,98685.0,98671.0,0.0002]
[1738848938094,0.023,98685.0,98672.0,0.152018]
[1738848938339,0.023,98685.0,98677.0,0.00448497]
[1738848938756,0.04801467,98685.0,98677.0,0.00448497]
[1738848938988,0.023,98683.0,98671.0,0.0002]
[1738848939188,0.01309134,98681.0,98677.0,0.152011]
[1738848939395,0.01309134,98681.0,98678.0,0.152009]
[1738848939601,0.01309134,98681.0,98680.0,0.152006]
[1738848939708,0.01309134,98681.0,98678.0,0.15649346]
[1738848939912,0.01309134,98681.0,98679.0,0.152007]
[1738848940202,0.01309134,98681.0,98680.0,0.00448862]
[1738848940667,0.001,98681.0,98680.0,0.00448862]
[1738848940861,0.01309134,98687.0,98680.0,0.00448862]
[1738848941289,0.01309134,98687.0,98681.0,0.00448811]
[1738848941458,0.152003,98682.0,98681.0,0.00448811]
[1738848941820,0.152003,98683.0,98676.0,0.0003631]
[1738848942127,0.023,98686.0,98677.0,0.002]
[1738848942128,0.152009,98678.0,98677.0,0.002]
[1738848942339,0.175009,98678.0,98677.0,0.002]
[1738848942470,0.023,98677.0,98676.0,0.0003631]
[1738848942702,0.152011,98677.0,98676.0,0.0003631]